Cogmind - Beta 14 @@@ ROGUE MODE // 2024.11.15 @ 16:25:36 Player: Fangrelle Result: Destroyed by Y-45 Defender with Heavy Assault Rifle Performance ------------- Evolutions (0) 0 Regions Visited (2) 400 Robots Destroyed (31) 155 Value Destroyed (953) 953 Prototype IDs (0) 0 Alien Tech Used (0) 0 Bonus (8) 8 TOTAL SCORE: 1516 Bonus ------- High Alert Combat Kills 8 Cogmind --------- Core Integrity 0/250 Matter 300/300 Energy 114/150 System Corruption 0% Temperature Cool (6) Movement Walking (190) Ox1 Location -10/Mines Parts ------- > --- POWER (1) -------- Light Angular Momentum Engine > --- PROPULSION (2) --- Aluminum Leg Aluminum Leg > --- UTILITY (2) ------ Large Storage Unit Shield Generator > --- WEAPON (2) ------- Particle Gun Particle Gun > --- INVENTORY (15) --- Ion Engine Light Nuclear Core Improved Heat Sink Huge Storage Unit Shield Generator Shield Generator Particle Gun Mining Laser Ripper Peak State ------------ > --- POWER ------------ Light Angular Momentum Engine > --- PROPULSION ------- Aluminum Leg Aluminum Leg > --- UTILITY ---------- Large Storage Unit Shield Generator > --- WEAPON ----------- Particle Gun Particle Gun > --- INVENTORY -------- Ion Engine Light Nuclear Core Huge Storage Unit Shield Generator Shield Generator Particle Gun Mining Laser [Rating: 15] Favorites ----------- Power Ion Engine Engine Ion Engine Propulsion Aluminum Leg Treads Light Treads Leg Aluminum Leg Wheel Wheel Utility Large Storage Unit Device Shield Generator Storage Large Storage Unit Weapon Particle Gun Energy Gun Particle Gun Ballistic Gun Assault Rifle Build | -11 -10 -10 ------- Run | Yrd Mat Min Slots Evolved . | . . . Power . | . . . Propulsion . | . . . Utility . | . . . Weapon . | . . . Parts Attached 23 | . 21 2 Power 5 | . 4 1 Engine 5 | . 4 1 Core . | . . . Reactor . | . . . Propulsion 10 | . 10 . Treads 2 | . 2 . Leg 6 | . 6 . Wheel 2 | . 2 . Hover . | . . . Flight . | . . . Utility 2 | . 2 . Device 1 | . 1 . Storage 1 | . 1 . Processor . | . . . Hackware . | . . . Protection . | . . . Artifact . | . . . Weapon 6 | . 5 1 Energy Gun 4 | . 3 1 Energy Cannon . | . . . Ballistic Gun 2 | . 2 . Ballistic Cannon . | . . . Launcher . | . . . Special Weapon . | . . . Impact Weapon . | . . . Slashing Weapon . | . . . Piercing Weapon . | . . . Special Melee Weapon . | . . . Unidentified Prototypes . | . . . Parts Lost 4 | . 3 1 Power . | . . . Propulsion 1 | . 1 . Utility . | . . . Weapon 3 | . 2 1 Highest Loss Streak 1 | . 1 1 To Critical Strikes . | . . . Average Slot Usage (%) 92 | . 87 100 Engine 14 | . 14 14 Treads 2 | . 4 . Leg 22 | . 18 28 Wheel 1 | . 2 . Device 9 | . 6 14 Storage 14 | . 14 14 Energy Gun 21 | . 17 28 Ballistic Gun 5 | . 8 . Peak Build Rating 15 | . 11 15 Average Rating 9 | . 8 11 On Entrance 7 | 6 6 11 Naked Turns . | . . . Heaviest Build 37 | 14 33 37 Greatest Support 40 | 20 40 20 Greatest Overweight (x) 3 | . 3 1 Average Overweight (x) . | . . 1 Largest Inventory Capacity 15 | . 15 15 Average Capacity 14 | . 14 15 Most Carried 14 | . 14 9 Average Carried 7 | . 8 6 Final Capacity 15 | 8 15 15 Final Carried 9 | 6 6 9 Class Distribution -------------------- 83% | Mutant 16% | Scavenger-Mutant Dominant Class ---------------- Mutant | -10/Materials Mutant | -10/Mines Resources | -11 -10 -10 ----------- Run | Yrd Mat Min Matter Collected 644 | 200 326 118 Remotely . | . . . Salvage Created 1104 | . 865 239 Parts 65 | . 53 12 Haulers Intercepted 1 | . 1 . Recyclers Shooed 1 | . 1 . Parts Field Recycled . | . . . Retrieved Matter . | . . . Parts Self-Destructed . | . . . Prevented . | . . . Kills | -11 -10 -10 ------- Run | Yrd Mat Min Combat Hostiles Destroyed 29 | . 22 7 Guns 29 | . 22 7 Classes Destroyed 4 | . 4 . Hauler 1 | . 1 . Watcher 1 | . 1 . Swarmer 5 | . 5 . Grunt 24 | . 17 7 Best Kill Streak 3 | . 3 3 Combat Bots Only 3 | . 3 3 Max Kills in Single Turn 2 | . 1 2 Gunslinging 1 | . . 1 Exploded . | . . . Melee . | . . . Uniques/NPCs Destroyed . | . . . Combat | -11 -10 -10 -------- Run | Yrd Mat Min Hostile Shots Fired 182 | . 162 20 Missed 56 | . 49 7 Damage Taken 1232 | . 1125 107 Core 250 | . 225 25 Absorbed by Shields 125 | . 84 41 Core Remaining (%) 100 | 100 . . Volleys Fired 121 | . 104 17 Largest 2 | . 2 2 Hottest 130 | . 130 130 Shots Fired 209 | . 175 34 Gun 209 | . 175 34 Cannon . | . . . Launcher . | . . . Special . | . . . Kinetic 87 | . 87 . Thermal 108 | . 74 34 Explosive . | . . . Electromagnetic 14 | . 14 . Robot Hit Streak 18 | . 18 16 Robot Miss Streak 5 | . 5 3 Penetration Max . | . . . Secondary Targets 1 | . . 1 Max Gunslinging Chain 1 | . . 1 Shots Hit Robots 129 | . 109 20 Core Hits 48 | . 40 8 Critical Kills . | . . . Critical Parts Destroyed . | . . . Critical Strikes 4 | . 3 1 Burn 3 | . 2 1 Corrupt 1 | . 1 . Melee Attacks . | . . . Impact . | . . . Slashing . | . . . Piercing . | . . . Sneak Attacks . | . . . Combat Hostiles . | . . . Follow-up Attacks . | . . . Damage Inflicted 1746 | . 1400 346 Guns 1716 | . 1370 346 Cannons . | . . . Explosions 30 | . 30 . Melee . | . . . Ramming . | . . . Kinetic 639 | . 639 . Thermal 1003 | . 657 346 Explosive . | . . . Electromagnetic 104 | . 104 . Impact . | . . . Slashing . | . . . Piercing . | . . . Highest Corruption . | . . . Average Corruption . | . . . Corruption Purged . | . . . Corruption Blocked . | . . . Overload Shots . | . . . Overflow Damage . | . . . Projectiles . | . . . Explosions . | . . . Melee . | . . . Knockbacks . | . . . Impact . | . . . Kinetic . | . . . Secondary . | . . . Self-Inflicted Damage 27 | . 27 . Shots 1 | . 1 . Rammed . | . . . Targets Rammed . | . . . Kicked . | . . . Crushed . | . . . Highest Temperature 621 | . 621 449 Average Temperature 162 | . 157 175 Received Heat Transfer 557 | . 507 50 Effects 14 | . 9 5 Shutdowns 3 | . 2 1 Energy Bleed 2 | . 1 1 Interference 1 | . . 1 Matter Decay 2 | . . 2 Short Circuit 1 | . 1 . Damage (minor) 2 | . 2 . Damage (major) 3 | . 3 . Siege Activations . | . . . Robots Corrupted . | . . . Combat Hostiles . | . . . Parts Fried . | . . . Impact Corruptions . | . . . Robots Melted . | . . . Combat Hostiles . | . . . Parts Melted 4 | . 2 2 Heat Transferred 2566 | . 1678 888 Parts Sabotaged . | . . . Parts Stolen . | . . . Parts Stripped . | . . . Power Chain Reactions 1 | . 1 . Alert | -11 -10 -10 ------- Run | Yrd Mat Min Peak Influence 426 | . 426 133 Initial 133 | . . 133 Average 129 | . 170 67 Maximum Alert Level 2 | . 2 . Low Security (%) 75 | . 59 100 Level 1 24 | . 40 . Level 2 . | . . . Level 3 . | . . . Level 4 . | . . . Level 5 . | . . . High Security . | . . . Max Security . | . . . Squads Dispatched 6 | . 6 . Investigation 5 | . 5 . Extermination . | . . . Reinforcement 1 | . 1 . Assault . | . . . Garrison . | . . . Intercept . | . . . Searches Triggered . | . . . Construction Impeded . | . . . Haulers Reinforced . | . . . Active Scanning Responses . | . . . Cargo Convoy Interrupts . | . . . Stealth | -11 -10 -10 --------- Run | Yrd Mat Min Distress Signals 4 | . 2 2 Communications Jammed . | . . . Distress Signals . | . . . Times Spotted 44 | . 36 8 Peak Tracking Total 6 | . 6 3 Tactical Retreats 2 | . 2 . Traps | -11 -10 -10 ------- Run | Yrd Mat Min Traps Triggered 5 | . 5 . Indirectly . | . . . Trap Hack Attempts . | . . . Triggered . | . . . Disarmed . | . . . Reprogrammed . | . . . Reused . | . . . Traps Extracted . | . . . Installed . | . . . Triggered . | . . . Machines | -11 -10 -10 ---------- Run | Yrd Mat Min Machines Disabled 4 | . 3 1 Max in Single Turn 1 | . 1 . Machines Repaired . | . . . Machines Dismantled . | . . . Machines Sabotaged . | . . . Overloaded Fab Kills . | . . . Hacking | -11 -10 -10 --------- Run | Yrd Mat Min Machines Accessed 9 | . 9 . Terminals 7 | . 7 . Fabricators . | . . . Repair Stations . | . . . Recycling Units 2 | . 2 . Scanalyzers . | . . . Garrison Access . | . . . Total Hacks 31 | . 31 . Successful 19 | . 19 . Failed 12 | . 12 . Catastrophic 1 | . 1 . Database Lockouts . | . . . Manual 25 | . 25 . Terminals 24 | . 24 . Fabricators . | . . . Repair Stations . | . . . Recycling Units 7 | . 7 . Scanalyzers . | . . . Garrison Access . | . . . Terminal Hacks 1 | . 1 . Alert Level 1 | . 1 . Fabricator Hacks . | . . . Repair Station Hacks . | . . . Recycling Unit Hacks 3 | . 3 . Report Inventory 2 | . 2 . Retrieve Components 1 | . 1 . Scanalyzer . | . . . Garrison Access Hacks . | . . . Unauthorized Hacks 15 | . 15 . Terminals 13 | . 13 . Assimilate 5 | . 5 . Botnet 7 | . 7 . Skim 1 | . 1 . Fabricators . | . . . Repair Stations . | . . . Recycling Units 2 | . 2 . Tunnel 2 | . 2 . Scanalyzers . | . . . Garrison Access . | . . . Data Cores Recovered . | . . . Used . | . . . Hacking Detections 8 | . 8 . Full Trace Events . | . . . Feedback Events . | . . . Feedback Blocked . | . . . Robot Schematics Acquired . | . . . Robots Built . | . . . Authchips . | . . . Time . | . . . Total Robot Build Rating . | . . . Part Schematics Acquired . | . . . Parts Built . | . . . Authchips . | . . . Time . | . . . Total Part Build Rating . | . . . Parts Repaired . | . . . Time . | . . . Parts Recycled . | . . . Recycled Matter . | . . . Retrieved Matter . | . . . Retrieved Components 2 | . 2 . Parts Scanalyzed . | . . . Part Schematics Acquired . | . . . Parts Damaged . | . . . Bothacking | -11 -10 -10 ------------ Run | Yrd Mat Min Used RIF Installer . | . . . Robots Hacked . | . . . Non-combat . | . . . Combat . | . . . Robot Hacks Applied . | . . . Relay Couplers Released . | . . . Fabnet Peak Effective % . | . . . Robots Rewired . | . . . Allies Hacked . | . . . Hacks Repelled . | . . . Allies | -11 -10 -10 -------- Run | Yrd Mat Min Total Allies 3 | . . 3 Largest Group 2 | . . 2 Highest-Rated Group 48 | . . 48 Highest-Rated Ally 31 | . . 31 Total Orders . | . . . Ally Attacks 5 | . . 5 Total Damage 82 | . . 82 Kills . | . . . Allies Corrupted . | . . . Allies Melted 1 | . . 1 Intel | -11 -10 -10 ------- Run | Yrd Mat Min Robot Analysis Total . | . . . Derelict Logs Recovered 1 | . . 1 Drone Launches . | . . . Drone Recoveries . | . . . Exploration | -11 -10 -10 ------------- Run | Yrd Mat Min Turns Passed 2814 | . 1701 1113 Spaces Moved 1007 | 1 772 234 Core . | . . . Treads 78 | . 78 . Legs 803 | 1 568 234 Wheels 126 | . 126 . Hover . | . . . Flight . | . . . Fastest Speed 105 | 120 105 190 Average Speed 178 | 120 175 190 Slowest Speed 330 | 120 330 190 Overloaded Moves . | . . . Propulsion Burnouts . | . . . Robots Hopped . | . . . Cave-ins Triggered . | . . . Exploration Rate (%) 51 | 2 93 60 Regions Visited 2 Branch Regions 1 Pre-discovered Areas 2 | . 2 . Known Exits Taken . | . . . Unknown Exits Taken 2 | 1 1 . Scrap Searched 1 | . . 1 Spaces Dug . | . . . Terrain Destroyed 2 | . 2 . Melee . | . . . Projectile . | . . . AOE 2 | . 2 . Terrain Rammed . | . . . Walls Destroyed . | . . . Machines Disabled . | . . . Actions | -11 -10 -10 --------- Run | Yrd Mat Min Total 1821 | . 952 869 Wait 641 | . 29 612 Move 1005 | . 771 234 Hop . | . . . Pick Up 15 | . 12 3 Fast Attach 9 | . 8 1 Attach 4 | . 3 1 Detach 1 | . . 1 Swap 10 | . 10 . Drop 15 | . 15 . Fire 121 | . 104 17 Melee . | . . . Ram . | . . . Kick . | . . . Crush . | . . . Escape Stasis . | . . . Rewire . | . . . Trap . | . . . Miscellaneous . | . . . Route ------- -11/Scrapyard -10/Materials (discovered 4 exits: [*Mat x2] / [*Min x2]) -10/Mines (discovered 1 exit: [*Mat]) History --------- Turn | Location | Event 1 | -11/Scrapyard | Discovered new exit (range 0) 1 | -11/Scrapyard | Entered Materials 96 | -10/Materials | Discovered new exit (range 12) 318 | -10/Materials | Build established: Mutant 342 | -10/Materials | Discovered new exit (range 15) 492 | -10/Materials | Discovered new exit (range 12) 646 | -10/Materials | Core integrity fell below 50% 1075 | -10/Materials | Discovered new exit (range 15) 1406 | -10/Materials | Build established: Scavenger-Mutant 1452 | -10/Materials | Core integrity fell below 20% 1702 | -10/Materials | Entered Mines 1734 | -10/Mines | Excavation squad dispatched 1734 | -10/Mines | A large section of the Mines collapsed 1876 | -10/Mines | Build established: Mutant 1984 | -10/Mines | Excavation squad dispatched 2234 | -10/Mines | Excavation squad dispatched 2455 | -10/Mines | Discovered new exit (range 6) 2527 | -10/Mines | Received a Mining Laser from a helpful Derelict 2760 | -10/Mines | A weapon hastily lodged in a ceiling crevice suddenly fell to the ground 2815 | -10/Mines | Destroyed by Y-45 Defender with Heavy Assault Rifle Last Messages --------------- 02527_ X5-I6J(g): "And why aren't you carrying a mining laser?! Certainly you don't want THEM to uncover you when the ceiling comes crashing down? Here, take my spare." 02530_ X5-I6J(g): "You're apparently new around these parts, I'll cover you." 02532_ X5-I6J(g): "Mining lasers are a lot more useful than you might think..." 02535_ Acquired Mining Laser. 02591_ Acquired derelict log, extracted data. Data stored: Storage entrances (x1). 02600_ Core Extractor disabled. 02609_ X5-I6J(g) critical meltdown. 02614_ G-34 Mercenary destroyed. 02623_ G-47 Trooper destroyed. 02628_ Acquired Lgt. Angular Momentum Engine. 02630_ Acquired 10 matter. 02634_ Acquired Imp. Heat Sink. 02708_ A pair of derelicts emerge from the shadows: "We're, um, lost. You wouldn't happen to know the way out of here, would you?" 02760_ A Ripper has been hastily shoved under some rubble with a note attached: "Rip and tear!" 02764_ Acquired Ripper. 02789_ Searching scrap... 02789_ Found Lgt. Cannon. 02789_ Found Beam Cannon. 02789_ Found 66 Matter. Map ----- +----------------------------------------------------+ | ?????????? ###### #?#?#??### #?????????? | | ?????????? ??????? #????????## #### #?????????? | | ????????? ??????? #?????????# #??# #?????????? | | ????????? ??????? ?????????# #??# #?????????? | | ????????? ??????? ?????????# #?## #?????????? | | ????????? ???????# #????????# ### #?????????? | | ??????????????????????????????# #?????????? | | ??????????????????????????????# ##????????? | | ??????????????????????????????###### ######???? | | ???????????????????????????????????### #???? | | ?????????????????????????????????????## #???? | | ?????????????????????????????????????## ##???? | | ???????????????????????????????????### ##????? | | ??????????????????????????????????## #?????? | | ??????????????????????????????????# #?????? | | ??????????????????????????????????# # #?????? | | ??????????????????????????????????# ## #?????? | | ??????????????????????????????????# ?# ###???? | | ??????????????????????????????????# ?# #???? | | ??????????????????????######??????# ?#### #???? | | ?????????????????????##"!!"#??????## ????# #???? | | ?????????????????????#""![""???????# ????# #???? | | ?????????????????????#Y ????????# ????# #???? | | ??????????????????????# ???????? ????# #???? | | ????????????????# ???###//###?????? ?????# #???? | | ????????????????# ### @ ##????# ?????# #???? | | ????????????????# ##????????????# #???? | | ????????????????# ## g #????????????# #???? | | ????????????????????## ##???????????# #???? | | ?????????????????????## ###### #???# #???? | | ??????????????????????## z #???# #???? | | ???????????????????????#### ##### #???? | | ??????????????????????????## ########## ##??? | | ???????????????????????????## #?????## #??? | | ?????????????????????????#### #?????# #??? | | ?????????????????????????# ] ####?## # #? | | ?????????????????????????# ##% ### #?? | | ?????????????????????????#??#] ## #?? | | ????????????????????????????#### ##?? | | ???????????????????????????????###### #??? | | ????????????????????????????????????### #??? | | ??????????????????????????????????????## ##??? | | ???????????????????????????????????????#######???? | | ?????????????????????????????????????????????????? | | ?????????????????????????????????????????????????? | | ?????????????????????????????????????????????????? | | ?????????????????????????????????????????????????? | | ?????????????????????????????????????????????????? | | ?????????????????????????????????????????????????? | | | +----------------------------------------------------+ Best States ------------- Heat Dissipation 25 Energy Generation 18 Energy Capacity 250 Matter Stores 300 Matter Capacity 300 Sight Range 16 Terrain Scan Density 10 Evasion (%) 55 Recoil Reduction 2 Item Schematics ----------------- None Robot Schematics ------------------ None Fabricated ------------ Nothing Alien Tech Used ----------------- None Achievements -------------- None Challenges ------------ None Game ------ Seed GammaIntegratedBank Manual? 0 Play Time 00:18:14 Cumulative 81.5 hours Start 2024.11.15 @ 10:54:25 End 2024.11.15 @ 16:25:36 Sessions 3 Manual Loads 0 Difficulty Rogue Special Mode None Game No. 141 Rogue 141 Adventurer 0 Explorer 0 Win Type - Total 0 Types 0/0/0/0/0/0/0/0/0 Lore% 41 Gallery% 36 Achievement% 34 Wizard Run 0 Options --------- Layout 0 ASCII 0 Keyboard 0 Movement Mouse Keybinds 0 Fullscreen 1 Font 24/Smallcaps Map View 91x25 Zoom Use 93% Tactical HUD 1 Map Filters NONE Filters NONE Steam 1 RUN: 5defee4e-9400-433c-ad32-9ba0d391ecee